bitfinex/quotes_ETHUSD_20251012
["timestamp","ask_amount","ask_price","bid_price","bid_amount"]
[1760234745251,0.4376,3725.1,3723.8,0.6336]
[1760234745483,0.4376,3725.1,3724.6,0.6336]
[1760234745788,0.4210882,3725.2,3723.1,0.4104]
[1760234745960,1.92,3724.8,3724.1,2.68517194]
[1760234746151,0.4376,3725.0,3723.6,2.68552466]
[1760234746152,2.68492429,3724.5,3723.6,2.68552466]
[1760234746368,0.4376,3724.7,3723.7,0.6336]
[1760234746572,1.92,3724.5,3723.9,0.6336]
[1760234747311,2.68470831,3724.8,3722.6,0.4104]
[1760234747312,0.4376,3724.4,3722.6,0.4104]
[1760234747486,1.92,3724.2,3723.3,2.68575879]
[1760234747670,2.68501244,3724.4,3723.3,2.95433467]
[1760234747876,2.68501244,3724.4,3723.6,2.68551634]
[1760234748506,0.4376,3724.8,3723.4,0.6336]
[1760234748807,0.4376,3724.8,3724.2,2.68507515]
[1760234749371,0.4376,3724.8,3724.3,2.68501251]
[1760234749605,0.4210882,3725.2,3723.6,0.4104]
[1760234749810,2.68485206,3724.6,3723.9,0.6336]
[1760234750123,2.3576,3724.7,3720.2,1.26869999]
[1760234750310,1.92,3724.4,3723.2,0.6336]
[1760234750507,0.4376,3724.6,3723.2,0.6336]
[1760234750828,0.4376,3725.0,3723.4,0.6336]
[1760234751117,0.4376,3725.0,3723.6,0.6336]
[1760234751423,0.1336,3723.7,3723.6,0.37297739]
[1760234751712,0.1336,3723.7,3723.6,3.6921178]
[1760234752400,0.1336,3723.7,3723.6,4.1025178]
[1760234752976,0.1336,3723.7,3723.6,3.6921178]
[1760234754096,0.6939909,3725.2,3723.6,0.6336]
[1760234754301,0.4464,3723.7,3723.4,0.002]
[1760234754696,0.4464,3723.6,3723.4,0.002]
[1760234754917,1.92,3724.1,3723.4,0.002]
[1760234755125,2.3664,3724.1,3723.4,0.002]
[1760234755315,2.68486349,3724.6,3723.7,2.68544451]
[1760234755622,0.86755309,3725.1,3723.8,0.6336]
[1760234755807,2.68465092,3724.9,3724.0,0.6336]
[1760234756014,1.92,3725.0,3723.4,0.4124]
[1760234756188,2.3664,3725.1,3724.4,2.68499624]
[1760234756794,3.1309035,3725.1,3724.4,0.6336]
[1760234757013,0.4464,3725.1,3724.4,0.6336]
[1760234757212,0.222,3725.4,3724.6,2.68485037]
[1760234757417,1.92,3725.3,3724.6,2.68485037]
[1760234757653,2.68436097,3725.3,3724.6,2.68485037]
[1760234757831,0.42104454,3725.6,3724.7,1.044]
[1760234758015,0.001,3725.9,3724.9,0.6336]
[1760234758326,0.001,3725.9,3724.3,3.09541058]
[1760234758526,0.2334,3725.9,3725.3,0.6336]
[1760234758726,0.001,3725.9,3725.4,2.68425889]
[1760234759126,0.001,3725.9,3724.9,0.4104]
[1760234759424,0.001,3725.9,3725.6,2.68409033]
[1760234759628,0.001,3725.9,3725.0,0.6336]
[1760234759799,0.001,3725.9,3725.8,3.31758733]
[1760234760644,0.001,3725.9,3724.6,0.4104]
[1760234760839,0.4464,3725.8,3724.2,0.4104]
[1760234760996,1.92,3725.8,3724.2,0.4104]
[1760234761338,0.6798,3725.9,3723.9,0.4104]
[1760234761339,0.4464,3725.7,3723.9,0.4104]
[1760234761585,1.92,3725.7,3724.8,0.6336]
[1760234761789,1.92,3725.3,3724.6,0.6336]
[1760234761957,3.13053773,3725.6,3724.6,0.6336]
[1760234762157,1.92,3725.7,3724.7,0.6336]
[1760234762355,2.68414067,3725.6,3724.7,0.6336]
[1760234762559,0.4464,3725.5,3723.7,0.4104]
[1760234762763,1.92,3725.4,3724.4,2.68496069]
[1760234762963,2.68429029,3725.4,3724.3,2.68505679]
[1760234763279,1.92,3724.7,3723.3,2.68575523]
[1760234763479,1.92,3725.1,3723.5,0.26877552]
[1760234763680,1.92,3724.5,3723.7,2.68547471]
[1760234763885,1.92,3724.5,3723.6,2.6855731]
[1760234764050,1.92,3724.7,3723.9,2.68529129]
[1760234764384,0.1336,3724.2,3723.7,0.4104]
[1760234764556,0.1336,3724.2,3724.1,3.31881253]
[1760234764959,0.1336,3724.2,3724.1,0.6336]
[1760234765197,0.1336,3724.2,3724.1,3.31881253]
[1760234765722,0.58,3724.2,3723.4,2.68767353]
[1760234765998,0.4464,3724.2,3723.4,0.002]
[1760234766158,0.4464,3724.2,3723.6,0.6336]
[1760234766363,0.4464,3724.2,3723.4,0.002]
[1760234766675,0.1336,3723.5,3723.4,0.002]
[1760234766871,0.1336,3723.5,3723.4,3.85868178]
[1760234767083,0.1336,3723.5,3723.4,4.26908178]
[1760234767382,0.1336,3723.5,3723.4,1.17296443]
[1760234767589,0.1336,3723.5,3723.4,0.002]
[1760234767786,0.1336,3723.5,3723.4,3.32131735]
[1760234768093,1.92,3725.1,3723.4,3.32131735]
[1760234768094,1.92,3724.9,3724.1,2.68520902]
[1760234768259,0.4464,3725.0,3724.1,2.68520902]
[1760234768467,2.68466053,3724.9,3724.1,2.68520902]
[1760234768667,0.1336,3724.1,3723.9,0.6336]
[1760234769002,1.92,3724.6,3723.9,2.68533652]
[1760234770084,0.1336,3723.9,3723.8,3.31902886]
[1760234770291,3.13111745,3724.8,3723.9,0.6336]
[1760234770495,1.92,3724.5,3723.9,0.6336]
[1760234770701,1.92,3724.5,3723.8,2.68542886]
[1760234770702,0.1336,3723.9,3723.8,0.002]
[1760234771072,0.1336,3723.9,3723.8,0.6356]
[1760234771515,0.1336,3723.9,3723.8,3.32102886]
[1760234771714,0.001,3724.6,3724.5,3.31852415]
[1760234772100,0.001,3724.6,3724.5,3.72892415]
[1760234772270,0.001,3724.6,3724.5,3.31852415]
[1760234772696,0.001,3724.6,3724.5,3.72892415]
[1760234772882,0.001,3724.6,3724.5,3.31852415]
[1760234773286,0.001,3724.6,3723.8,0.60265531]
[1760234773515,0.001,3724.6,3723.8,0.002]
[1760234773915,0.001,3724.6,3724.5,3.31852415]
[1760234774211,0.001,3724.6,3724.5,3.81842415]
[1760234777102,0.001,3724.6,3724.5,3.40802415]
[1760234777305,0.001,3724.6,3724.5,3.31852415]
[1760234777613,0.001,3724.6,3724.5,4.33822845]
[1760234779217,0.001,3724.6,3724.5,3.31852415]
[1760234779622,0.001,3724.6,3724.5,3.72892415]
[1760234780131,0.001,3725.4,3725.3,2.68434756]
[1760234780330,0.001,3725.9,3725.8,3.31758733]
[1760234780640,1.92,3727.4,3726.1,3.31737123]
[1760234780796,2.68270702,3727.6,3726.1,4.2565938]
[1760234781000,0.4464,3727.2,3726.1,4.1858938]
[1760234781326,0.4464,3726.8,3726.1,3.31737123]
[1760234781500,0.4464,3726.8,3726.1,0.6336]
[1760234781700,0.4474,3726.2,3725.3,0.6336]
[1760234781928,0.4474,3726.2,3725.5,0.6336]
[1760234782228,0.001,3726.2,3725.4,0.6336]
[1760234782526,0.001,3726.2,3725.6,2.68406124]
[1760234782826,0.001,3726.2,3725.5,0.6336]
[1760234782827,0.1336,3725.6,3725.5,3.31780346]
[1760234783597,0.1336,3725.6,3725.5,3.72420346]
[1760234783792,0.1336,3725.6,3724.9,0.1336]
[1760234784137,0.1336,3725.6,3723.6,1.92]
[1760234784138,1.92,3725.4,3724.6,2.68478402]
[1760234784428,0.1336,3724.5,3723.5,0.1336]
[1760234784613,0.4499,3725.3,3723.4,0.002]
[1760234784796,1.58767092,3726.5,3723.7,2.68547751]
[1760234784797,0.4499,3724.4,3723.7,2.68547751]
[1760234784996,0.4499,3724.4,3723.8,0.6356]
[1760234785195,0.4499,3724.4,3723.8,3.32098562]
[1760234785410,1.92,3724.2,3723.8,0.002]
[1760234785606,0.4499,3724.4,3723.8,0.002]
[1760234785930,2.68429404,3725.4,3723.8,0.002]
[1760234785931,4.60535674,3723.9,3723.8,0.002]
[1760234786300,2.3699,3723.9,3723.8,0.002]
[1760234786601,5.05525674,3723.9,3723.8,0.002]
[1760234788148,29.51419718,3723.9,3723.8,0.002]
[1760234788316,22.74582791,3723.9,3723.8,0.002]
[1760234789119,25.35334791,3723.9,3723.8,0.002]
[1760234789515,11.70817222,3723.5,3723.4,0.002]
[1760234789747,17.83985476,3723.1,3723.0,0.002]
[1760234789956,26.4920762,3723.1,3723.0,0.002]
[1760234790131,26.9419762,3723.1,3723.0,0.002]
[1760234790655,18.1494422,3723.1,3723.0,0.002]
[1760234790875,5.05583376,3723.1,3723.0,0.002]
[1760234791323,28.0346432,3723.1,3723.0,0.002]
[1760234791650,25.2534352,3723.1,3723.0,0.002]
[1760234791824,5.05583376,3723.1,3723.0,0.002]
[1760234792023,1.92,3723.1,3723.0,0.002]
[1760234792227,1.92,3723.1,3723.0,2.6880059]
[1760234792422,1.92,3723.1,3723.0,0.002]
[1760234792922,2.3699,3723.1,3723.0,0.002]
[1760234793721,1.92,3723.1,3723.0,2.6880059]
[1760234793962,0.42122527,3723.9,3723.4,2.68567107]
[1760234794169,13.54350844,3724.3,3723.3,2.68577601]
[1760234794477,0.1336,3723.3,3723.0,0.002]
[1760234794761,1.92,3723.5,3723.0,0.002]
[1760234795126,0.4499,3723.8,3723.0,0.002]
[1760234795342,3.13539586,3723.8,3723.0,0.002]
[1760234795550,0.4499,3723.8,3723.0,0.002]
[1760234795749,0.4499,3723.8,3723.0,0.6356]
[1760234795750,3.13539639,3723.8,3723.0,0.6356]
[1760234795941,0.4499,3723.8,3723.0,0.002]
[1760234796252,1.92,3724.2,3723.2,0.6336]
[1760234796573,4.60515156,3724.2,3723.4,2.68568746]
[1760234796773,1.92,3724.2,3723.6,2.68554227]
[1760234797278,2.68508666,3724.3,3723.5,2.6856338]
[1760234797443,4.60493361,3724.5,3723.7,2.68548082]
[1760234797774,5.05489624,3724.4,3723.1,0.6336]
[1760234798069,0.1336,3723.4,3723.3,0.6336]
[1760234798270,2.68529173,3724.0,3723.3,0.6336]
[1760234798470,0.1336,3723.3,3723.2,3.31945688]
[1760234798677,1.92,3724.0,3723.1,0.6336]
[1760234798889,1.92,3724.0,3723.1,3.31952347]
[1760234799063,0.4499,3724.1,3723.2,0.6336]
[1760234799376,1.92,3724.0,3723.4,0.6336]
[1760234800047,0.4499,3724.1,3723.4,2.68569169]
[1760234800247,1.92,3724.0,3723.4,2.68569169]
[1760234800676,0.1336,3723.4,3723.2,0.6336]
[1760234800982,1.92,3724.0,3723.4,0.6336]
[1760234801192,0.4499,3724.1,3723.5,2.68557866]
[1760234801355,4.60505043,3724.4,3723.4,2.68571735]
[1760234801561,4.60505043,3724.4,3723.6,2.68551648]
[1760234801758,2.6850726,3724.3,3723.6,2.68551648]
[1760234801970,2.68463582,3724.9,3723.9,2.68535674]
[1760234802171,2.68470297,3724.9,3723.9,2.68535674]
[1760234802376,3.14781167,3724.8,3724.0,2.68521333]
[1760234802962,1.92,3724.6,3724.0,0.6336]
[1760234803157,13.09360844,3725.1,3724.0,0.6336]
[1760234803158,0.4631,3725.4,3724.0,0.62730011]
[1760234803394,1.92,3725.0,3724.3,2.68500441]
[1760234803694,0.1336,3724.3,3724.2,2.68514043]
[1760234803895,0.1336,3724.3,3724.2,3.09164043]
[1760234804460,13.55670844,3725.7,3725.0,2.6845012]
[1760234804688,13.55670844,3725.7,3724.3,3.31866833]
[1760234804689,0.1336,3724.6,3724.5,2.68492415]
[1760234805074,0.1336,3724.6,3724.5,3.09142415]
[1760234805473,0.002,3724.8,3724.1,0.0895]
[1760234805691,0.002,3724.8,3724.7,3.31837998]
[1760234805891,0.4651,3724.8,3721.9,2.68673276]
[1760234806091,1.92,3723.9,3722.3,0.4065]
[1760234806263,1.92,3724.2,3723.0,2.68800566]
[1760234806464,1.92,3723.7,3723.0,0.002]
[1760234806686,1.92,3723.7,3723.1,2.68592801]
[1760234806861,0.4631,3724.1,3723.2,2.68586103]
[1760234807065,1.92,3724.0,3723.2,2.68579195]
[1760234807302,1.92,3724.2,3723.0,0.002]
[1760234807602,0.4210693,3726.0,3724.7,3.31837998]
[1760234808211,2.3410693,3726.0,3724.7,3.31837998]
[1760234808499,0.4651,3725.2,3723.5,0.4065]
[1760234808664,3.14953867,3725.2,3723.9,0.6336]
[1760234808870,3.14953867,3725.2,3724.4,3.31858462]
[1760234809079,1.92,3725.1,3724.5,2.68490749]
[1760234809283,2.3851,3725.2,3724.5,2.68490749]
[1760234809481,2.68451666,3725.1,3724.3,3.3186039]
[1760234809682,0.4651,3725.2,3724.2,0.6336]
[1760234809885,0.002,3725.2,3724.6,2.68484676]
[1760234810501,0.002,3725.2,3724.7,2.68477998]
[1760234812500,0.002,3725.2,3724.7,3.31837998]
[1760234814030,0.002,3725.2,3724.7,3.72487998]
[1760234815574,0.1356,3724.8,3724.7,3.72487998]
[1760234815899,0.1356,3724.8,3724.7,4.36585558]
[1760234816611,0.1356,3724.8,3724.7,3.95935558]
[1760234816784,0.002,3724.8,3723.5,0.4065]
[1760234817117,0.002,3724.8,3724.1,2.68514332]
[1760234817118,0.4338,3724.8,3724.1,2.68514332]
[1760234817412,0.4338,3724.8,3724.2,2.68512502]
[1760234817621,2.3538,3724.8,3724.2,2.68512502]
[1760234817859,3.11857669,3724.8,3723.9,2.68529332]
[1760234818033,3.11857669,3724.8,3724.0,2.68526491]
[1760234818228,0.4338,3724.8,3723.3,0.6336]
[1760234818431,0.4338,3724.8,3724.2,2.68507842]
[1760234818838,0.4338,3724.8,3724.2,2.68508129]
[1760234819035,0.4338,3724.8,3723.4,0.77909616]
[1760234819223,0.4338,3724.8,3724.3,2.68499812]
[1760234819421,0.4338,3724.8,3724.2,2.68512639]
[1760234819847,0.4338,3724.8,3724.1,2.68520135]
[1760234820048,0.4338,3724.8,3723.8,0.6336]
[1760234820247,0.4338,3724.8,3724.1,2.68516925]
[1760234820759,0.4338,3724.8,3724.2,2.68512747]
[1760234821153,6.010056,3724.7,3722.6,0.001]
[1760234821474,1.92,3724.0,3723.1,2.68593376]
[1760234821700,0.4318,3724.7,3723.2,2.68586162]
[1760234821701,4.60499781,3724.4,3723.2,2.68586162]
[1760234821898,1.92,3724.3,3723.5,2.68562038]
[1760234822054,1.92,3724.6,3723.2,0.6336]
[1760234822260,1.92,3724.6,3723.8,2.6853711]
[1760234822551,0.002,3724.8,3723.9,0.6336]
[1760234822754,0.002,3724.8,3724.7,0.6336]
[1760234823102,0.002,3724.8,3724.7,3.31837998]
[1760234823454,0.002,3724.8,3724.7,3.72487998]
[1760234823670,0.002,3724.8,3724.7,4.3658589]
[1760234825698,1e-08,3725.2,3725.1,3.31809169]
[1760234826054,1e-08,3725.2,3725.1,3.72459169]
[1760234826251,0.001,3726.3,3726.2,3.31729921]
[1760234826591,0.001,3727.0,3726.2,3.31729921]
[1760234826592,0.001,3727.0,3726.5,3.31708316]
[1760234826754,0.001,3727.0,3726.9,3.31679514]
[1760234826958,0.001,3727.0,3726.9,3.45039514]
[1760234827159,0.001,3727.0,3726.9,3.85489514]
[1760234828380,0.4318,3730.7,3728.7,0.6336]
[1760234828566,0.4318,3730.7,3729.6,0.6336]
[1760234828757,0.4318,3730.3,3728.0,2.68236493]
[1760234828958,0.4318,3730.0,3729.3,0.6336]
[1760234829527,0.1336,3729.3,3729.2,0.6336]
[1760234829811,0.4318,3729.3,3728.3,0.6336]
[1760234830019,0.4318,3729.3,3728.6,0.6336]
[1760234830222,0.4318,3729.3,3727.4,0.1298]
[1760234830372,2.68169266,3729.0,3727.9,3.31607474]
[1760234830572,1.92,3728.9,3727.9,3.31607474]
[1760234830798,2.68181041,3728.9,3727.8,0.6336]
[1760234831010,0.4318,3729.3,3727.8,0.6336]
[1760234831313,2.68169838,3729.0,3727.9,0.6336]
[1760234831519,1.92,3728.9,3727.9,0.6336]
[1760234831722,0.4318,3729.2,3728.0,2.68239423]
[1760234832032,1.92,3729.5,3728.1,0.6336]
[1760234832179,1.92,3729.5,3728.6,0.6336]
[1760234832376,0.43180001,3729.7,3728.6,0.6336]
[1760234832708,0.43180001,3729.7,3728.7,2.68189095]
[1760234832709,1.92,3729.5,3728.7,2.68189095]
[1760234832913,0.4318,3729.4,3728.2,0.6336]
[1760234833092,2.68154202,3729.2,3728.4,0.6336]
[1760234833475,2.68154202,3729.2,3726.9,0.4045]
[1760234833476,0.4318,3729.1,3726.9,0.4045]
[1760234833783,2.3518,3729.1,3727.1,0.4045]
[1760234833989,0.4318,3729.1,3727.2,0.6336]
[1760234834188,1.92,3729.3,3726.8,0.1298]
[1760234834189,0.4318,3729.0,3726.8,0.1298]
[1760234834386,1.92,3728.4,3726.4,0.1298]
[1760234834629,0.4318,3728.3,3726.4,0.1298]
[1760234834776,1.92,3728.0,3726.0,0.4045]
[1760234834977,0.4318,3728.5,3726.2,0.4045]
[1760234835199,1.92,3728.3,3727.6,0.6336]
[1760234835397,1.92,3728.6,3727.8,0.6336]
[1760234835622,1.92,3728.6,3727.7,2.68260338]
[1760234835623,3.11382077,3728.6,3727.7,0.6336]
[1760234835916,3.11377384,3728.6,3727.8,2.68251498]
[1760234836074,1.92,3728.5,3727.8,2.68251498]
[1760234836276,0.42073185,3729.0,3728.0,0.6336]
[1760234836500,0.42073185,3729.0,3728.1,0.6336]
[1760234836501,2.3518,3728.9,3728.1,0.6336]
[1760234836729,1.92,3728.6,3728.0,0.6336]
[1760234837115,0.4318,3728.9,3727.3,0.6336]
[1760234837335,0.42073185,3729.0,3728.3,0.6336]
[1760234837538,3.10242179,3729.0,3728.3,0.6336]
[1760234837942,0.42073185,3729.0,3728.4,2.68210499]
[1760234838348,0.42073185,3729.0,3728.2,0.6336]
[1760234838855,0.42073185,3729.0,3728.3,2.68218287]
[1760234839146,1.92,3728.9,3728.3,0.6336]
[1760234839338,2.68176241,3728.9,3728.3,0.6336]
[1760234839848,2.68175795,3728.9,3728.3,0.6336]
[1760234840433,0.002,3728.6,3728.3,0.6336]
[1760234840650,0.002,3728.6,3728.3,2.68216228]
[1760234840848,0.002,3728.6,3728.2,0.6336]
[1760234841033,0.1356,3728.6,3728.5,2.68204371]
[1760234841238,0.1356,3728.6,3728.5,3.31564371]
[1760234841438,0.1356,3728.6,3728.5,3.72014371]
[1760234842161,2.68230322,3728.2,3727.3,0.1336]
[1760234842459,0.1336,3727.3,3726.4,0.1336]
[1760234842665,2.68263323,3727.7,3726.9,2.68314326]
[1760234842864,0.1336,3726.7,3726.3,3.0880733]
[1760234843067,0.1336,3726.7,3726.5,2.68341821]
[1760234843273,0.1336,3726.7,3726.3,2.6835733]
[1760234843470,1.92,3727.3,3726.4,0.27542733]
[1760234843671,1.92,3727.3,3725.2,0.4045]
[1760234843672,0.1336,3726.3,3725.2,0.4045]
[1760234843835,0.1336,3726.3,3725.3,2.68434756]
[1760234844034,0.1336,3725.8,3725.6,2.68411107]
[1760234844268,0.4718,3726.4,3724.7,2.68476971]
[1760234844445,0.1336,3725.5,3725.4,0.6336]
[1760234844642,0.1336,3725.5,3725.4,3.31787551]
[1760234844843,0.1336,3725.5,3725.4,3.72237551]
[1760234845168,1.92,3727.0,3726.0,0.6336]
[1760234845360,2.68331721,3726.8,3726.0,0.6336]
[1760234845559,1.92,3727.1,3726.4,0.6336]
[1760234845760,0.1336,3726.0,3725.6,2.68412755]
[1760234845948,0.1336,3725.8,3725.7,2.68403757]
[1760234846267,0.1336,3725.8,3725.7,3.31765937]
[1760234846836,0.4718,3728.1,3725.9,0.6336]
[1760234847072,0.1336,3726.8,3726.7,3.31693914]
[1760234847368,3.15419999,3728.1,3726.1,0.6336]
[1760234847369,0.4718,3727.2,3726.1,0.6336]
[1760234847534,2.68262973,3727.7,3725.9,0.2709]
[1760234847535,1.92,3727.7,3725.9,0.2709]
[1760234847734,0.4718,3727.8,3727.0,2.68310421]
[1760234847960,0.4718,3727.8,3726.9,3.31673013]
[1760234848160,1.92,3727.7,3726.9,0.6336]
[1760234848337,0.1336,3726.9,3726.3,0.6336]
[1760234848668,1.92,3727.7,3726.9,0.6336]
[1760234848871,1.92,3727.8,3726.9,0.6336]
[1760234849067,1.92,3727.6,3726.9,2.68317221]
[1760234849364,0.1336,3726.9,3726.7,0.6336]
[1760234849565,2.68262636,3727.7,3726.9,0.6336]
[1760234849769,2.68262636,3727.7,3726.7,0.6336]
[1760234849973,2.6824795,3727.9,3726.7,3.31692451]
[1760234850267,1.92,3727.4,3726.5,3.31706937]
[1760234850466,0.1336,3726.6,3726.5,3.9503117]
[1760234850642,0.1336,3726.6,3726.5,1.26684233]
[1760234850842,0.1336,3726.6,3726.5,3.31708316]
[1760234851941,0.1336,3726.6,3726.3,0.6336]
[1760234852135,0.1336,3726.6,3726.2,2.68365691]
[1760234852136,2.3918,3727.4,3726.4,0.6336]
[1760234852574,0.1336,3726.8,3726.7,2.68333914]
[1760234852736,0.1336,3727.0,3726.9,2.68314839]
[1760234852939,0.1336,3727.0,3726.9,3.31674839]
[1760234853173,0.14050619,3728.1,3727.8,0.6336]
[1760234853473,0.002,3728.6,3728.0,2.68239269]
[1760234853767,0.002,3728.6,3728.3,0.6336]
[1760234853968,0.1336,3728.0,3727.9,0.6336]
[1760234854167,0.002,3728.6,3728.5,3.31564371]
[1760234854550,0.1356,3728.6,3728.5,3.31564371]
[1760234855612,0.1356,3728.6,3728.5,3.58654371]
[1760234855768,0.002,3728.6,3728.5,3.58654371]
[1760234856564,0.002,3728.6,3728.5,5.50654371]
[1760234856764,0.002,3728.6,3728.5,4.40541563]
[1760234857603,0.002,3728.6,3728.5,4.13451563]
[1760234858469,0.002,3728.6,3728.5,4.40541563]
[1760234858877,0.002,3728.6,3728.5,4.13451563]
[1760234859104,0.002,3728.6,3728.5,0.6336]
[1760234859294,0.002,3728.6,3728.5,3.58654371]
[1760234861403,0.002,3728.6,3728.5,3.31564371]
[1760234861618,0.002,3728.6,3728.5,3.58654371]
[1760234863635,0.002,3728.6,3728.5,3.31564371]
[1760234864922,0.002,3728.6,3728.5,3.58654371]
[1760234865125,0.002,3728.6,3728.5,3.31564371]
[1760234866526,0.002,3728.6,3728.5,4.22677654]
[1760234867023,0.002,3728.6,3728.5,4.36037654]
[1760234872290,0.002,3728.6,3728.5,2.68204371]
[1760234872494,0.002,3728.6,3728.5,3.58654371]
[1760234874809,0.002,3728.6,3728.5,2.68204371]
[1760234875131,0.002,3728.6,3728.5,3.58654371]
[1760234877633,0.002,3729.4,3729.3,3.31506837]
[1760234877822,0.002,3729.4,3729.3,3.64657521]
[1760234878036,0.002,3729.4,3729.3,3.91747521]
[1760234882035,0.001,3730.5,3729.6,3.31485268]
[1760234882244,0.001,3730.5,3729.6,3.44845268]
[1760234882413,0.001,3730.5,3729.6,3.71935268]
[1760234882615,0.001,3730.5,3729.6,4.52712009]
[1760234883569,0.001,3730.5,3730.1,0.6336]
[1760234883856,0.001,3730.5,3730.4,3.49567767]
[1760234884316,0.001,3730.5,3730.4,3.76657767]
[1760234884915,0.001,3730.5,3730.4,5.68657767]
[1760234885112,0.001,3730.5,3730.4,6.52331758]
[1760234885316,0.001,3730.5,3730.4,4.60331758]
[1760234886361,0.001,3730.5,3730.4,6.52331758]
[1760234886841,0.001,3731.3,3731.2,3.31370291]
[1760234887279,0.001,3731.3,3731.2,3.58460291]
[1760234887582,0.001,3731.3,3731.2,4.21108313]
[1760234889274,0.001,3731.3,3731.2,2.68010291]
[1760234889638,0.001,3731.3,3730.0,0.1814]
[1760234889839,0.4372,3731.2,3730.0,0.1814]
[1760234890370,0.001,3731.3,3730.9,0.6336]
[1760234890555,0.001,3731.3,3731.1,0.6336]
[1760234890739,0.001,3731.3,3731.1,2.68012215]
[1760234890934,0.001,3731.3,3731.2,3.31370291]
[1760234891649,0.001,3731.3,3730.6,2.68053396]
[1760234891863,0.001,3731.3,3731.2,3.31370291]
[1760234893559,0.001,3731.3,3731.2,0.6336]
[1760234894479,0.001,3731.3,3729.6,2.68122705]
[1760234894480,2.81371556,3731.2,3730.3,2.6807295]
[1760234894651,0.1336,3730.3,3729.6,0.1336]
[1760234894854,0.1336,3730.3,3730.2,3.3144214]
[1760234895754,0.1336,3730.3,3730.2,3.913959]
[1760234896385,0.001,3731.3,3730.2,3.913959]
[1760234896573,0.001,3731.3,3730.9,0.6336]
[1760234896778,0.1336,3730.9,3730.8,2.68039026]
[1760234897356,0.1336,3730.9,3730.2,0.6336]
[1760234897647,0.1336,3730.7,3730.6,2.68048502]
[1760234897875,0.1336,3730.7,3730.6,3.48750076]
[1760234898555,0.1336,3730.7,3730.6,3.21660076]
[1760234899783,0.4372,3731.0,3730.5,2.68060196]
[1760234899966,0.4372,3731.0,3730.6,3.31412021]
[1760234900862,1.92,3731.2,3729.5,3.13361182]
[1760234900863,0.001,3731.3,3730.5,0.6336]
[1760234901073,0.001,3731.3,3731.0,0.6336]
[1760234901589,0.4382,3731.3,3730.9,0.6336]
[1760234902094,0.4372,3731.2,3729.5,2.68129974]
[1760234902282,1.92,3730.7,3729.5,0.28627118]
[1760234902480,0.4372,3730.8,3729.6,0.6336]
[1760234902682,0.001,3731.3,3729.8,0.6336]
[1760234902860,0.001,3731.3,3730.9,0.6336]
[1760234903194,0.001,3731.3,3731.2,3.31370291]
[1760234903780,0.001,3731.3,3731.2,4.18399278]
[1760234903959,0.001,3731.3,3731.2,3.91309278]
[1760234904165,0.001,3731.3,3731.2,4.18399278]
[1760234905561,0.001,3732.5,3731.6,3.31341562]
[1760234905864,0.001,3732.5,3732.4,3.40234123]
[1760234906063,0.001,3732.5,3732.4,4.01050932]
[1760234906284,0.001,3732.5,3732.4,4.28140932]
[1760234908274,0.001,3732.5,3731.7,0.2709]
[1760234908472,0.001,3732.5,3732.4,2.67924123]
[1760234908678,0.001,3732.5,3732.2,2.67931311]
[1760234909009,0.001,3732.5,3732.4,3.31284123]
[1760234909360,0.001,3732.5,3732.4,3.58374123]
[1760234909590,0.001,3732.5,3732.4,4.21900383]
[1760234910363,0.001,3732.5,3732.4,4.35260383]
[1760234911766,0.001,3732.5,3732.4,3.94810383]
[1760234912297,0.001,3732.5,3731.6,0.2709]
[1760234912473,0.001,3732.5,3732.3,2.67925372]
[1760234912673,0.001,3732.5,3732.1,2.67938879]
[1760234912904,0.001,3732.5,3732.2,2.6793668]
[1760234913097,0.001,3732.5,3731.6,0.2709]
[1760234913305,0.001,3732.5,3732.0,2.67946158]
[1760234913607,2.362,3732.5,3730.6,0.2709]
[1760234913771,2.67934534,3732.3,3731.5,2.67982309]
[1760234914092,2.67934534,3732.3,3731.6,0.6336]
[1760234914289,2.67949045,3732.1,3730.6,2.95141603]
[1760234914477,1.92,3732.1,3730.7,0.2953416]
[1760234914673,1.92,3732.1,3731.4,2.67994408]
[1760234914868,1.92,3732.1,3731.5,0.6336]
[1760234915074,0.441,3732.2,3731.6,0.6336]
[1760234915479,1.92,3732.1,3731.4,0.6336]
[1760234915682,1.92,3732.1,3731.4,3.31355764]
[1760234916080,0.001,3732.5,3731.5,0.6336]
[1760234916282,2.67932865,3732.3,3731.5,0.6336]
[1760234916579,2.361,3732.2,3731.4,0.6336]
[1760234916791,2.361,3732.2,3731.4,3.31355204]
[1760234916974,1.92,3731.8,3730.5,0.002]
[1760234917170,1.92,3731.8,3731.3,0.6336]
[1760234917502,0.001,3732.5,3731.3,0.6336]
[1760234917702,1.92,3732.3,3731.7,0.6336]
[1760234918003,0.001,3732.5,3731.9,0.6336]
[1760234918579,0.001,3732.5,3732.0,0.6336]
[1760234919313,0.001,3732.5,3732.4,0.6336]
[1760234919612,0.001,3732.5,3732.4,3.31284123]
[1760234921089,0.001,3732.5,3732.4,0.6336]
[1760234922413,0.001,3732.5,3732.4,3.58374123]
[1760234922572,0.001,3732.5,3732.4,3.31284123]
[1760234922776,0.001,3732.5,3732.4,3.93436611]
[1760234923320,0.001,3732.5,3732.4,1.25512488]
[1760234923491,0.001,3732.5,3732.4,3.31284123]
[1760234923680,0.4715,3732.5,3731.8,0.1336]
[1760234923880,0.1336,3732.0,3731.7,2.67970185]
[1760234924125,0.1336,3731.8,3731.7,2.67970185]
[1760234924330,0.1336,3731.8,3731.7,3.31330185]
[1760234924493,0.1336,3731.8,3731.5,2.67981855]
[1760234924688,0.1336,3731.5,3731.4,2.67994143]